[Event "Benidorm Open-B 2022"]
[Site "Benidorm"]
[Date "2022.12.06"]
[Round "4.10"]
[White "Place, Nicholas"]
[Black "Stokes, Paul C"]
[Result "0-1"]
[ECO "B12"]
[WhiteElo "1967"]
[BlackElo "1791"]
[Annotator "TA"]
[PlyCount "100"]
[EventDate "2022.12.03"]
[EventType "swiss"]
[EventCountry "ESP"]
[SourceTitle "playchess.com"]
[Source "ChessBase"]
[SourceQuality "1"]
[TimeControl "5400+30"]

{[%evp 11,100,17,17,0,11,-7,4,-26,-17,-16,0,0,0,0,0,0,12,0,11,0,35,0,7,6,11,-60,-46,-104,-103,-106,-102,-158,-47,-103,-53,-89,-104,-151,-141,-94,-29,-29,-29,-32,0,0,0,0,0,-66,-19,-33,0,0,229,235,454,454,1242,1257,1263,1147,1166,686,672,644,616,196,209,3,106,-231,-256,-641,-635,-608,-631,-818,-835,-812,-797,-943,-580,-754,-754,-729,-543,-550,-546,-759,-546]} 1. e4 c6 2. d4 d5 3. f3 dxe4 4. fxe4 e5 5. Nf3 Bg4 6. Bc4 Nd7 7. O-O {[%cal Oc4f7] B12: Caro-Kann: Advance Variation.} (7. dxe5 Bxf3 8. Qxf3 Nxe5 $15) (7. c3 $5 {[%cal Rd1b3]}) 7... Ngf6 $1 8. c3 {Qb3 is the strong threat.} Bd6 9. Be3 {The position is equal.} O-O 10. Nbd2 Qc7 11. h3 Bh5 12. Qc2 b5 13. Bd3 a6 14. a4 Bg6 15. Nh4 (15. axb5 {seems wilder.} axb5 16. Nh4 exd4 17. cxd4 Bh2+ 18. Kh1) 15... Rfe8 16. Nf5 {[#]} Bxf5 $146 ({Predecessor:} 16... Bf8 17. Rae1 Rad8 18. Qd1 Nc5 19. Bc2 Nxa4 20. Bxa4 bxa4 21. Qxa4 exd4 22. Bxd4 c5 23. Bxf6 gxf6 {1-0 (48) Pace,P (2266)-Miracola,M (2118) Milan 2012}) 17. Rxf5 c5 {[%cal Bc6c5,Bc5c4][%mdl 32]} 18. dxe5 (18. axb5 $11 cxd4 19. cxd4 Qxc2 20. Bxc2 axb5 21. Rxa8 Rxa8 22. dxe5 Nxe5 23. Kf2) 18... Nxe5 $15 19. axb5 (19. Be2 $15) 19... c4 $17 20. Be2 axb5 21. Raf1 (21. Rd1 $142) 21... Ra2 (21... Bc5 $17 22. Bxc5 Qxc5+ 23. Kh2 Qb6) 22. Nf3 ({White should try} 22. Kh1 $15) 22... Nfd7 {Black is more active.} ({Black should play} 22... Ned7 $17 {Hoping for ...g6.} 23. e5 Nxe5) 23. Nd4 Qb7 24. Rg5 (24. Nf3 $142) 24... Be7 25. Rg3 Bh4 ({Better is} 25... g6 $17 {aiming for ...Bh4.} 26. Nf5 Bf8) 26. Rxg7+ $1 $11 Kxg7 27. Nf5+ Kg8 (27... Kh8 $5 {[%cal Rh4e7]} 28. Nxh4 f6 $15) 28. Nxh4 Rea8 29. Nf5 Ra1 30. Bc1 (30. Bd1 $11) 30... Qb6+ (30... Kh8 $15 {deserves consideration.}) 31. Kh1 Qa6 32. Qd2 {Threatens to win with Qg5+.} Nf8 $2 (32... Kh8 $1 $11 {and Black has nothing to worry.}) 33. Qg5+ $18 Neg6 $2 (33... Nfg6 34. Qh6 Qf6) 34. Nh6+ {[%mdl 64] [#] Discovered Attack, Deflection} Kh8 (34... Kg7 $142 35. Rxf7+ Kh8) 35. Nxf7+ Kg8 36. Nh6+ Kh8 37. Be3 {Intending Bd4+ and mate.} Rxf1+ 38. Bxf1 {This pair of bishops is nice.} Ne6 39. Qf6+ (39. Qd5 {Bd4+ would kill now.} Re8 40. Qd7) 39... Ng7 40. Nf7+ (40. Qf7 $18 {[%cal Of7g8] Threatening mate with Qg8+!} Qe6 41. Qb7) 40... Kg8 $16 {[#]} 41. Nd6 $2 {[%mdl 8192] Now White is beyond hope.} (41. Qf2 $1 $16 {is forced if you want to stay better.}) 41... Rf8 $19 {[%mdl 64] Deflection. The board is on fire.} 42. Qd4 (42. Bxc4+ bxc4 43. Qd4) 42... Rxf1+ {Black is clearly winning.} 43. Kh2 Qc6 ({And not} 43... Ne6 44. Qd5 Ngf8 45. Nf5 $15) 44. Bh6 {[%csl Gh6][%cal Rd4g7]} Ne6 45. Qd2 Qc5 46. Nf5 Qc7+ 47. g3 Qd8 {White must now prevent ...Qxd2+.} 48. Nd6 Qb6 {[%csl Gf1][%cal Rb6g1]} 49. Be3 {Prevents Qg1+.} Qc6 50. Kg2 {Against Rf3} Rf8 {Weighted Error Value: White=0.72/Black=0.43} 0-1

[Event "Benidorm Open-B 2022"]
[Site "Benidorm"]
[Date "2022.12.06"]
[Round "4.11"]
[White "Gukasov, Artem"]
[Black "Ruiz Ureta, Ernesto"]
[Result "1/2-1/2"]
[ECO "A00"]
[WhiteElo "1788"]
[BlackElo "1937"]
[Annotator "TA"]
[PlyCount "81"]
[EventDate "2022.12.03"]
[EventType "swiss"]
[EventCountry "ESP"]
[SourceTitle "playchess.com"]
[Source "ChessBase"]
[SourceQuality "1"]
[TimeControl "5400+30"]

{[%evp 9,81,-60,-64,-113,-59,-50,-64,-48,-60,-113,-66,-191,-168,-131,0,8,14,20,10,-79,-78,-75,82,85,114,-69,-50,-109,33,16,16,18,37,26,39,38,39,31,37,36,90,0,269,266,259,262,252,252,249,235,412,397,622,475,304,201,116,-26,6,-100,-47,-68,-62,-58,-58,-47,0,0,0,0,0,0,0,0]} 1. g4 d5 2. Bg2 c6 3. g5 e5 4. d4 e4 5. f3 f5 {[#]} 6. gxf6 $146 {A00: Irregular Openings.} (6. c4 $15 {feels stronger.}) ({Predecessor:} 6. h4 Bd6 7. Nh3 h6 8. f4 h5 9. O-O Ne7 10. b3 Ng6 11. Qe1 Qe7 12. e3 {1-0 (46) Lin,D (2299)-Iskusnyh,S (2473) Chess.com INT 2022}) 6... Nxf6 (6... Qxf6 $17 {Hoping for ...Qh4+.} 7. Qd2 Be7) 7. fxe4 $1 $15 Nxe4 8. Nf3 {Prevents Qh4+. Black is slightly better.} Bd6 9. Nbd2 ({White should play} 9. c4 $15) 9... O-O (9... Ng5 $17 10. c4 O-O) 10. Nxe4 (10. O-O $15) 10... dxe4 $19 11. Ng5 Bf4 {Prevents c3.} (11... h6 $17 12. Nxe4 Bh3 13. Bxh3 (13. Bg5 $2 Qa5+ 14. Qd2 Bb4 $19) 13... Qh4+ 14. Ng3 Qxh3) 12. Bxf4 $11 Rxf4 13. h4 Rxh4 14. Rxh4 (14. Nxe4 $11 {keeps the balance.} Rxh1+ 15. Bxh1) 14... Qxg5 $17 15. Rxe4 {[#] And now Re8+ would win.} Bf5 $2 {[#]} (15... Nd7 $1 $17 {and life is bright.} 16. Qd3 (16. Re8+ Kf7 $17) 16... Qxg2 17. Re8+ Kf7) 16. Qd3 $1 $16 Bxe4 (16... Nd7 17. Qb3+) 17. Qxe4 ({White must play} 17. Bxe4 $16 Nd7 18. Bxh7+ (18. Qb3+ $2 Kh8 $19) 18... Kh8 19. Qh3) 17... Na6 $1 $15 {[%cal Bb8a6,Ba6c7,Bc7e6][%mdl 32]} 18. e3 (18. Kf2 $15) 18... Qg3+ (18... Nc7 $17 {Threatens to win with ...Re8.} 19. O-O-O Re8) 19. Ke2 {Strongly threatening Rh1.} (19. Kd2 $5 {[%cal Ra1h1]}) 19... Nc7 (19... h6 {looks sharper.} 20. Rg1 Qg5 21. Rf1 Nc7) 20. Rf1 Qd6 (20... Re8 {is interesting.} 21. Qf3 Qg6 22. Kd2 Nb5) 21. Qf4 (21. c3 {seems wilder.} g6 22. Qg4 Re8 23. Kd3) 21... Qxf4 22. Rxf4 $11 {[%mdl 4096] Endgame KRB-KRN} Re8 23. c4 Ne6 24. Re4 Nc7 {Inhibits d5.} ({Black should try} 24... Kf7 $14) 25. d5 (25. Rxe8+ $16 Nxe8 26. e4) 25... cxd5 $2 {[%mdl 8192]} (25... Rxe4 $1 $11 {and Black is okay.} 26. Bxe4 cxd5 27. cxd5 Kf7) 26. Rxe8+ $18 Nxe8 27. Bxd5+ $11 {KB-KN} (27. cxd5 Nd6 $11) 27... Kf8 28. Bxb7 Ke7 29. b4 {[%cal Bb2b4,Bb4b5][%mdl 32]} Nd6 $2 {Inhibits c5.} (29... Nf6 30. c5 h5) 30. Bd5 $18 Kf6 (30... Ne8 $142 31. e4 Nf6) 31. b5 Ke5 32. Bg8 h5 (32... g5 $18 33. a4 (33. Bxh7 Nxc4 34. Bd3 Nb6 $14) 33... h5) 33. c5 (33. a4 $16) 33... Ne4 {[%mdl 1024] Black has compensation.} 34. Kd3 (34. b6 $11 axb6 35. cxb6) 34... h4 (34... Nxc5+ $17 35. Ke2 g5) 35. c6 h3 ({Don't play} 35... Nd6 36. Ke2 $11) 36. c7 Nd6 {Prevents c8Q.} 37. Bh7 {[%cal Oh7e4] Inhibits h2.} h2 (37... Nxb5 38. c8=Q Nd6 39. Qxh3 g6 40. Qd7 Nf5 41. Bxg6 Nd6 42. Qe7+ Kd5 43. Bh5) (37... Ke6 $1 $15 38. Bg8+ Kd7) 38. Be4 $1 $11 {The position is equal.} Nxe4 (38... Nc8 $5 {[%cal Re5d6]}) 39. c8=Q h1=Q (39... h1=R 40. Qe8+ Kf6 41. Qc6+ Kf7 42. Qd5+ Kf6 43. Qd4+ Kg5 44. Qxe4 $18) 40. Qe8+ Kf5 {( -> ...Qd1+)} 41. Qd7+ {What a bad dream for Black.   Weighted Error Value: White=0.37/Black=0.48} 1/2-1/2

[Event "Benidorm Open-B 2022"]
[Site "Benidorm"]
[Date "2022.12.06"]
[Round "4.12"]
[White "Cluyts, Marc"]
[Black "Pedraza Fernandez, Miguel Angel"]
[Result "0-1"]
[ECO "B23"]
[WhiteElo "1923"]
[BlackElo "1784"]
[Annotator "TA"]
[PlyCount "56"]
[EventDate "2022.12.03"]
[EventType "swiss"]
[EventCountry "ESP"]
[SourceTitle "playchess.com"]
[Source "ChessBase"]
[SourceQuality "1"]
[TimeControl "5400+30"]

{[%evp 11,56,61,62,47,57,64,69,60,59,-19,236,68,52,18,4,0,0,0,0,-620,-611,-910,-864,-841,-729,-744,-742,-950,-949,-922,-919,-901,-812,-29988,-29988,-29978,-29978,-29991,-29992,-29992,-29993,-29994,-29995,-29996,-29992,-29992,-29993]} 1. e4 c5 2. Nc3 Nc6 3. f4 g6 4. Nf3 Bg7 5. Bb5 a6 6. Bxc6 bxc6 7. O-O {B23: Closed Sicilian: Lines without g3.} d6 8. d3 Rb8 9. Qe1 {White is slightly better.} Nh6 10. f5 (10. h3 $14) 10... e6 $2 {[%mdl 8192] [#]} (10... gxf5 $11 11. Qh4 Ng8) 11. fxe6 $146 (11. f6 $1 $18 {[%cal Rf6g7]} Bf8 12. Qh4) ({Predecessor:} 11. f6 Bf8 12. Qh4 Ng8 13. d4 cxd4 14. Nxd4 e5 15. Nb3 h5 16. Bd2 Bh6 17. Rad1 {1-0 (43) Stanchev,P (1853)-Ruschukov,B Sofia 2010}) 11... Bxe6 12. Ng5 (12. e5 $5 {[%cal Re5d6]}) 12... O-O 13. Nxe6 fxe6 14. Rxf8+ Qxf8 15. b3 {[%mdl 8192] [#]} (15. h3 $11) 15... Ng4 $1 $19 {Strongly threatening ...Bd4+.} 16. h3 Bd4+ 17. Kh1 Nf2+ 18. Kh2 Qf6 19. Bd2 Qe5+ 20. g3 Qh5 21. h4 Rf8 {( -> ...Be5)} 22. Rc1 Qg4 {Black mates.} 23. Qf1 Be5 {[%csl Ge5,LRg3,LRh4][%cal Rg4g3]} 24. Qg2 Qxh4+ 25. Kg1 Bxg3 26. Rf1 Nh3+ 27. Kh1 Nf4+ 28. Kg1 Nxg2 {Weighted Error Value: White=0.94/Black=0.27 (precise)} 0-1

[Event "Benidorm Open-B 2022"]
[Site "Benidorm"]
[Date "2022.12.06"]
[Round "4.13"]
[White "Ballina Amandi, Casimiro"]
[Black "Urena Casacuberta, Lluis"]
[Result "0-1"]
[ECO "B27"]
[WhiteElo "1757"]
[BlackElo "1917"]
[Annotator "TA"]
[PlyCount "138"]
[EventDate "2022.12.03"]
[EventType "swiss"]
[EventCountry "ESP"]
[SourceTitle "playchess.com"]
[Source "ChessBase"]
[SourceQuality "1"]
[TimeControl "5400+30"]

{[%evp 11,138,0,0,0,6,3,14,16,13,0,3,-17,-12,-20,8,25,33,24,56,25,51,14,59,0,21,16,17,-12,-19,-49,-5,-27,-24,-33,19,0,13,-5,-2,-32,-24,-25,0,0,0,-18,-17,-33,-33,-37,-39,-24,-31,-71,-20,-20,-20,-20,-20,-20,-20,-54,-39,-78,-54,-88,-54,-54,-43,-54,0,-54,-20,-54,0,0,0,0,0,0,0,0,4,3,14,0,53,0,0,-57,-54,-55,-38,-59,-59,-59,-59,-63,-64,-1091,-1083,-1062,-1015,-1000,0,0,0,0,29960,29961,29955,0,0,0,464,-238,305,0,1048,450,389,0,0,-1122,-1122,-1115,-1088,-805,-364]} 1. e4 e5 2. Nf3 c5 3. Bb5 Nc6 4. d3 g6 5. c3 Bg7 6. O-O Nge7 7. a3 {B31: Sicilian: 2...Nc6 3 Bb5 g6.} O-O 8. b4 d6 9. Bc4 {The position is equal.} h6 10. Be3 b6 11. Qb3 {[#]} Rb8 $146 ({Predecessor:} 11... Qe8 12. Ne1 Kh7 13. f3 f5 14. a4 Bd7 15. a5 cxb4 16. cxb4 bxa5 17. b5 Rb8 {0-1 (40) Raetsch,H-Malich,B Premnitz 1961}) 12. Qa2 Bg4 13. Nbd2 Qc8 14. h3 Be6 15. Rfd1 Kh7 16. Nf1 Rd8 17. b5 {Against d5} (17. Bxe6 $14 Qxe6 18. Qxe6 fxe6 19. Rdb1) 17... Na5 18. Bxe6 Qxe6 19. Qxe6 fxe6 20. Bd2 Rd7 21. c4 Nb3 22. Rab1 Nxd2 ({Better is} 22... Nd4 $15) 23. Rxd2 Ra8 24. Rb3 a6 25. Ra2 axb5 26. Rxb5 Nc8 27. Ne3 Rda7 28. Nc2 Bf6 29. Rab2 Bd8 30. Nd2 Ne7 31. Nb1 Nc6 32. Nc3 Kg7 (32... Nd4 $17 33. Nxd4 exd4) 33. R5b3 $11 Na5 34. Rb5 Kf7 {[%cal Bg7f7,Bf7e7,Be7d7][%mdl 32]} 35. Ra2 Ra6 36. g3 Nc6 37. Rab2 Ke7 38. Kg2 Kd7 39. R5b3 Na5 40. Rb5 Nc6 41. R5b3 $1 Bc7 42. Nb5 Nd4 (42... g5 $15) 43. Ncxd4 exd4 44. f4 h5 45. Rf2 Rf8 {Against f5} 46. g4 hxg4 47. hxg4 d5 48. f5 {And now fxe6+ would win.} exf5 (48... dxc4 $11 49. dxc4 exf5) 49. Nxc7 (49. exd5 $14 Raa8 50. Nxc7 Kxc7 51. Rfb2) 49... dxc4 $1 50. dxc4 (50. Nxa6 $11 cxb3 51. exf5 (51. gxf5 gxf5 52. exf5 Ra8 $11)) 50... Kxc7 $15 51. exf5 gxf5 52. Rxf5 Rxf5 53. gxf5 $11 {[%mdl 4096] Endgame KR-KR} Kd6 $1 54. Kf3 Ke5 55. Kg4 {[%mdl 8192]} (55. f6 $15) 55... Ke4 $19 56. f6 d3 {Strongly threatening ...d2.} 57. f7 d2 $2 (57... Ra8 $19 {Threatens to win with ...d2.} 58. Rxb6 Rf8) 58. f8=Q $11 {[%csl Gg4][%cal Rf8f4]} (58. Rb1 $2 Ra8 59. Kg5 Kd3 60. Rxb6 (60. Rd1 $2 Ke2 $19) 60... Kxc4 $19) 58... d1=Q+ {KQR-KQR} 59. Rf3 {[%csl Gf3,Gg4][%cal Rf8f4]} Qd7+ $2 {[%mdl 8192]} (59... Qg1+ $11 60. Rg3 Qd1+ 61. Kg5 (61. Kh4 Qh1+ 62. Rh3 Qe1+ 63. Kg5 Qd2+ 64. Kh5 Qd1+ 65. Kg5 Qd2+ 66. Kh5 Qd1+ 67. Kh4 Qe1+ 68. Rg3 Qh1+ 69. Kg5 Qc1+ 70. Kh5 Qh1+ 71. Kg5 Qc1+ 72. Kh5 Qh1+ 73. Kg4 Qd1+ 74. Kh4 Qh1+ $11) 61... Qc1+ 62. Kh5 Qh1+ 63. Kg4 Qd1+ 64. Kh4 Qh1+ 65. Rh3 Qe1+ 66. Kg5 (66. Kh5 Qd1+ 67. Kg5 Qd2+ 68. Kh5 Qd1+ 69. Kh4 Qe1+ 70. Kh5 Qd1+ $11) 66... Qd2+ 67. Kh5 Qd1+ 68. Kh4 Qe1+ 69. Kg5 (69. Kh5 Qd1+ 70. Kg5 Qg1+ 71. Kh5 Qd1+ $11) 69... Qg1+ 70. Kh5 Qd1+ 71. Kh4 Qe1+) 60. Kg3 {[%csl Gf3,Gg3][%cal Rf8f4]} Qc7+ 61. Rf4+ $2 ({Inferior is} 61. Kf2 Qh2+ 62. Kf1 Qe5 $11) (61. Kg2 $1 {mates} Qe5 62. Qh6 Qb2+ 63. Kg3 Qe5+ 64. Kg4 Rxa3 65. Rxa3 Qf5+ 66. Kg3 Qe5+ 67. Kh3 Qf5+ 68. Kg3 Qe5+ 69. Kh3 Qf5+ 70. Kg2) 61... Kd3 62. Qf5+ (62. Kg2 $5 Qc6+ $8 63. Kh2 $11) 62... Kc3 $2 {[%mdl 8192]} (62... Kd2 $11) 63. Kf2 $4 {[%mdl 8192]} (63. Kg2 $1 $18 {is the narrow road to win.} Qg7+ 64. Rg4 Qxg4+ 65. Qxg4) 63... Qd6 $4 {[%mdl 8192] [#]} (63... Rxa3 $19 {White must now prevent ...Kb4.} 64. Rf3+ Kb2 65. Qf6+ Ka2 66. Rxa3+ Kxa3) 64. Rf3+ $2 (64. Kg2 $1 $18 Rxa3 65. Rf3+ Kb2 66. Rf2+ Kc3 67. Qb1 Kxc4 68. Qc1+ Kb4 69. Rf4+ Qxf4 70. Qxf4+ Kb5 71. Kf1) 64... Kd2 $2 {[%mdl 8192]} (64... Kb2 $2 65. Kg2 Rxa3 66. Rf2+ Kb3 67. Qb1+ Kxc4 68. Qc1+ Rc3 69. Rf4+ $18) (64... Kxc4 $11 65. Rf4+ (65. Qc2+ Kb5 $11) 65... Kc3) 65. Qg5+ (65. Kg1 $142 {Intending Rf2+ and mate.} Qd4+ 66. Rf2+ Qxf2+ 67. Qxf2+ Kd3 68. Qb2) 65... Kd1 $18 {Hoping for ...Qh2+.} 66. Qg1+ $2 (66. Qh5 $18 {Threatening mate with Rd3+.} Qd4+ 67. Kg2) 66... Kc2 $11 {...Ra4 is the strong threat.} 67. Qg4 $2 {[%mdl 8192] [#]} (67. Re3 $11 Qf4+ 68. Ke2) 67... Qd4+ $1 $19 {Black is clearly winning.} 68. Kg3 Qxg4+ 69. Kxg4 Kb2 {Weighted Error Value: White=0.20 (precise) /Black=0.32} 0-1

[Event "Benidorm Open-B 2022"]
[Site "Benidorm"]
[Date "2022.12.06"]
[Round "4.14"]
[White "Lopez Heras, Arturo"]
[Black "Millward, Kevin P"]
[Result "0-1"]
[ECO "B00"]
[WhiteElo "1704"]
[BlackElo "1928"]
[Annotator "TA"]
[PlyCount "71"]
[EventDate "2022.12.03"]
[EventType "swiss"]
[EventCountry "ESP"]
[SourceTitle "playchess.com"]
[Source "ChessBase"]
[SourceQuality "1"]
[TimeControl "5400+30"]

{[%evp 12,71,33,31,31,23,41,52,42,-7,-4,0,0,-16,-12,-18,-22,-29,-25,-28,-32,-34,-39,-37,-35,-47,-45,-43,-14,-147,-149,-141,-149,-142,-143,-149,-143,-220,-216,-445,-289,-328,-335,-351,-339,-344,-335,-440,-387,-372,-377,-408,-400,-542,-539,-516,-500,-499,-471,-526,-532,-1500]} 1. e4 d6 2. d4 Nf6 3. Nc3 e5 4. dxe5 dxe5 5. Qxd8+ Kxd8 6. Nf3 Bd6 7. Bc4 {The main line 7.Bc4 scores better than 7.Bg5.} Ke7 {B07: Pirc Defence: Miscellaneous Systems.} 8. Bg5 (8. Be3 {simplifies} Be6 9. Bxe6 fxe6 10. O-O-O) 8... Be6 9. Nd5+ Bxd5 {White is slightly better.} 10. exd5 (10. Bxd5 $14 c6 11. Bc4) 10... h6 {[#]} 11. Bxf6+ $146 ({Predecessor:} 11. Bh4 Nbd7 12. O-O-O g5 13. Bg3 Ne4 14. Bd3 Nxg3 15. hxg3 Bc5 16. Rd2 Kd6 17. Bf5 {½-½ (40) Davydov,S-Markov,A (2220) Ekaterinburg 1996}) 11... Kxf6 12. O-O g6 13. Rae1 a6 14. a3 Nd7 15. Re2 Kg7 16. Rfe1 f5 17. c3 Kf6 18. Ba2 b5 19. Bb3 Rhb8 {[%cal Bh8b8,Bb8b4,Bb4a4,Ba4a1,Ba1b1][%mdl 32]} 20. c4 {White is on the road to losing.} (20. g3 $11) 20... Nc5 $17 21. Ba2 {[%cal Rf3e5]} Nd3 22. Rb1 b4 {Black is more active.} 23. axb4 Rxb4 24. Rd2 {[#]} (24. b3 $17) 24... Nc5 $1 $19 25. Rc1 $2 (25. Kf1) 25... Rab8 26. Rcc2 Ra4 27. Bb1 Ra1 28. Rd1 {[#]} Nd3 $1 {[%cal Od6c5][%mdl 512] aiming for ...Bc5!} 29. g3 (29. Rf1 Nxb2) 29... Rxb2 (29... Nxb2 $2 {is the wrong capture.} 30. Rf1 $19) 30. Rxb2 Nxb2 31. Rc1 {[#]} Nxc4 {[%cal Oe5e4][%mdl 512] And now ...e4! would win.} 32. Rxc4 (32. Re1 Nb6) 32... Rxb1+ {Black is clearly winning.} 33. Kg2 Rb5 34. Ra4 a5 (34... Rxd5 $2 {too greedy.} 35. Rxa6 e4 36. Ng1 $19) 35. Nd2 Rxd5 36. Rh4 {Weighted Error Value: White=0.38/Black=0.11 (very precise)} 0-1

[Event "Benidorm Open-B 2022"]
[Site "Benidorm"]
[Date "2022.12.06"]
[Round "4.15"]
[White "Vicente Soriano, Josep"]
[Black "Izquierdo Carbellido, Pablo"]
[Result "0-1"]
[ECO "C00"]
[WhiteElo "1713"]
[BlackElo "1900"]
[Annotator "TA"]
[PlyCount "82"]
[EventDate "2022.12.03"]
[EventType "swiss"]
[EventCountry "ESP"]
[SourceTitle "playchess.com"]
[Source "ChessBase"]
[SourceQuality "1"]
[TimeControl "5400+30"]

{[%evp 9,82,3,29,29,36,37,272,287,280,120,117,36,21,-28,0,-27,-27,-27,-27,-27,-27,-29,-27,-27,-27,-29,-27,-50,-48,-45,-46,-50,-31,-31,-33,-57,-50,-54,-35,-57,-50,-57,-56,-60,-61,-68,-68,-81,-32,-78,-70,-70,-62,-67,-55,-70,-70,-91,-91,-97,-62,-106,-108,-121,-118,-116,-70,-98,-89,-89,29996,-73,0,-528,-500]} 1. e4 e6 2. Qe2 e5 3. g3 Bc5 4. c3 Nc6 5. Bg2 Nge7 6. Nf3 {[%cal Of3e5] [#] C00: French: Unusual White 2nd moves.} f6 $146 ({Predecessor:} 6... Bb6 7. O-O d6 8. d3 O-O 9. a4 a5 10. Nbd2 f5 11. Nc4 fxe4 12. dxe4 Bc5 {1-0 (44) Espinoza Solano,J (1999)-Moncada,O (1600) Managua 2018}) 7. O-O O-O $2 (7... Bb6 $14) 8. Qc4+ $18 {White has a decisive advantage.} d5 9. exd5 (9. Qxc5 $18 {exd5 is the strong threat.} b6 10. Qb5) 9... Qxd5 $16 {[#]} 10. Qxd5+ (10. Nxe5 $1 $16 {[%mdl 512]} Qxc4 11. Nxc4) 10... Nxd5 $14 {[#]} 11. d3 (11. Nxe5 $142 $1 Nxc3 12. bxc3 fxe5 13. Ba3) 11... Be6 $36 {[%mdl 2048] Black is more active.} 12. Nbd2 Rad8 13. Nb3 Bb6 14. d4 exd4 15. Nfxd4 Nxd4 16. Nxd4 Bxd4 17. cxd4 c6 18. Bxd5 Rxd5 19. Be3 Rfd8 20. a3 a5 21. Rfe1 Rb5 22. Re2 a4 23. Rc1 Rbd5 {[%cal Bb5d5,Bd5d6,Bd6e6][%mdl 32]} 24. Rd2 Kf7 25. Rc5 R5d6 26. Rdc2 Bb3 27. Rc1 Re6 28. R5c3 f5 (28... Bd5 $17) 29. f4 (29. Rc5 $15) 29... h6 30. Kf2 Kf6 31. h4 Kg6 32. Re1 Bd5 33. Bd2 Be4 34. Be3 b6 35. Rec1 Kh5 36. Re1 Kg4 37. Rcc1 Rd5 {Black has more active pieces.} ({Black should play} 37... Re7 $17 38. Rf1 Red7) 38. Rc3 Rg6 39. Rcc1 {[%cal Oh4h5]} Kh3 $2 {[%mdl 8192] [#]} (39... Rgd6 $17) 40. Rg1 $2 (40. Rh1+ $1 {[%mdl 512] mates} Kg4 41. h5 Bxh1 42. Rxh1 Rf6 43. Rh4#) 40... Rb5 (40... h5 $17 {Strongly threatening ...Rb5.} 41. Rc3 Rd8) 41. h5 $2 {[%mdl 8192]} (41. b4 $1 $11 Kh2 42. h5) 41... Rxb2+ {Weighted Error Value: White=0.62/Black=0.45} 0-1

[Event "Benidorm Open-B 2022"]
[Site "Benidorm"]
[Date "2022.12.06"]
[Round "5.1"]
[White "Palao, Adriana"]
[Black "Goktepe, Derin"]
[Result "0-1"]
[ECO "C53"]
[WhiteElo "1972"]
[BlackElo "1828"]
[Annotator "TA"]
[PlyCount "58"]
[EventDate "2022.12.03"]
[EventType "swiss"]
[EventCountry "ESP"]
[SourceTitle "playchess.com"]
[Source "ChessBase"]
[SourceQuality "1"]
[TimeControl "5400+30"]

{[%evp 15,58,0,0,13,15,-63,-67,-62,-81,-112,-107,-111,-41,-28,-46,-65,-38,-47,-29,-58,-8,-41,-33,-60,-10,-48,-20,-51,-57,-203,-211,-421,-147,-154,-119,-297,-316,-605,-597,-1160,-1136,-29991,-29992,-29994,-29995]} 1. e4 e5 {[%cal Be7e5,Be5d4][%mdl 32]} 2. Nf3 Nc6 3. d4 exd4 4. Bc4 Bc5 5. c3 {[%cal Bc2c3,Bc3d4][%mdl 32]} Nf6 6. e5 d5 7. Bb5 Ne4 8. cxd4 Bb6 9. h3 {C54: Giuoco Piano: 4 c3 Nf6, main lines with 5 d4 and 5 d3.} O-O {aiming for ...f6.} 10. Bxc6 (10. O-O $11) 10... bxc6 $15 11. O-O {Black is slightly better.} c5 {Black is more active.} (11... Ba6 {keeps more tension.} 12. Re1 c5 13. Nc3 cxd4 14. Nxe4 dxe4 15. Rxe4 Qd5) 12. Nc3 cxd4 13. Nxd4 Nxc3 (13... Ba6 $17 14. Re1 Nxf2 $1 {[%mdl 512]} 15. Kxf2 Qh4+ 16. g3 Qxd4+ 17. Qxd4 Bxd4+ 18. Be3 Bxe3+ 19. Kxe3 c6) 14. bxc3 c5 {[#] Inhibits a4.} 15. Nb3 $146 ({Predecessor:} 15. Nf3 Bb7 16. a4 Ba5 17. Qd3 c4 18. Qc2 h6 19. Rb1 Rb8 20. Ba3 Re8 21. Rfe1 {½-½ (48) Moewisch,D (1783)-Noack,T (1581) Playchess.com INT 2020}) 15... Bb7 16. Qg4 Qc8 17. Qg3 Qf5 ({Black should play} 17... Qc6 $15) 18. Be3 Rac8 19. Rab1 {[%cal Oe3c5]} Ba8 ({Better is} 19... Ba6 $15 20. Rfe1 Rc6) 20. a4 (20. Bh6 $5 {[%cal Rg3g7]} Qg6 21. Qxg6 hxg6 22. Be3 $15) 20... a6 (20... Rc6 $5 {[%cal Rd5d4]} 21. Qf4 Qxf4 22. Bxf4 c4 $15) 21. a5 (21. Rfe1 {with more complications.} Rfd8 22. a5 Ba7 23. Bh6) 21... Ba7 ({Don't play} 21... Bc7 22. Bxc5 Rfe8 23. Bd6 $16) 22. f4 {[#]} (22. Bh6 $15 Qg6 23. Qxg6 hxg6 24. Be3) 22... Rc6 $1 $19 23. Qf2 $2 (23. Qg5 {was necessary.} Qe4 24. f5 Qxe5 25. f6 Qxg5 26. Bxg5) 23... Rfc8 $2 (23... d4 $19 {and Black stays clearly on top. Strongly threatening ...Rg6.} 24. Kh2 (24. cxd4 $2 {perishes.} cxd4 25. Nxd4 Bxd4 $19) 24... dxe3 25. Qxe3 Rcc8) 24. g4 Qe4 {[%cal Od5d4]} 25. Nd2 $2 {Prevents d4.} (25. Rfe1 $17 {keeps fighting.}) 25... Qd3 26. Nb3 {Against d4} (26. f5 d4 27. Bf4 (27. cxd4 $2 cxd4 28. Bg5 h6 $19)) 26... d4 27. cxd4 cxd4 28. Bxd4 Rc2 29. Rfd1 Qxh3 {Weighted Error Value: White=0.99/Black=0.25 (precise)} 0-1